Cogmind - Beta 16 @@@ ROGUE MODE // 2025.10.22 @ 17:36:20 Player: Noname1208 Result: Self-destructed Performance ------------- Evolutions (0) 0 Regions Visited (4) 800 Robots Destroyed (3) 15 Value Destroyed (134) 134 Prototype IDs (23) 460 Alien Tech Used (0) 0 Bonus (300) 300 TOTAL SCORE: 1709 Bonus ------- Aligned with FarCom 300 Cogmind --------- Core Integrity 169/250 Matter 300/300 Energy 250/250 System Corruption 7% Temperature Cool (0) Movement Rolling (90) Location -9/Mines Parts ------- > --- POWER (1) -------- Ion Engine > --- PROPULSION (2) --- Wheel Compact Wheel > --- UTILITY (2) ------ Medium Storage Unit > --- WEAPON (2) ------- (None) > --- INVENTORY (10) --- Light Ion Engine Aluminum Leg Aluminum Leg High-capacity Matter Pod (200) Targeting Computer Skeleton Box Beam Cannon Light Assault Rifle Bore Cannon Peak State ------------ > --- POWER ------------ Ion Engine > --- PROPULSION ------- Wheel Compact Wheel > --- UTILITY ---------- Medium Storage Unit Improved Light Armor Plating > --- WEAPON ----------- Bore Cannon Grenade Launcher > --- INVENTORY -------- Light Ion Engine Aluminum Leg Aluminum Leg High-capacity Matter Pod Targeting Computer Skeleton Box Small Laser Beam Cannon Light Assault Rifle Mining Laser [Rating: 14] Favorites ----------- Power Ion Engine Engine Ion Engine Propulsion Aluminum Leg Leg Aluminum Leg Wheel Compact Wheel Utility Medium Storage Unit Storage Medium Storage Unit Protection Light Armor Plating Weapon EM Pulse Gun Energy Gun EM Pulse Gun Ballistic Gun Light Assault Rifle Ballistic Cannon Bore Cannon Launcher Grenade Launcher Special Weapon Mining Laser Build | -11 -10 -10 -10 -9 ------- Run | Yrd Mat Min Exi Min Slots Evolved . | . . . . . Power . | . . . . . Propulsion . | . . . . . Utility . | . . . . . Weapon . | . . . . . Parts Attached 14 | 6 2 3 . 3 Power 1 | 1 . . . . Engine 1 | 1 . . . . Core . | . . . . . Reactor . | . . . . . Propulsion 4 | 2 . 2 . . Treads . | . . . . . Leg 2 | 2 . . . . Wheel 2 | . . 2 . . Hover . | . . . . . Flight . | . . . . . Utility 4 | 1 1 1 . 1 Device . | . . . . . Storage 2 | 1 . 1 . . Processor . | . . . . . Hackware . | . . . . . Protection 2 | . 1 . . 1 Artifact . | . . . . . Weapon 5 | 2 1 . . 2 Energy Gun 1 | 1 . . . . Energy Cannon . | . . . . . Ballistic Gun 1 | 1 . . . . Ballistic Cannon 1 | . . . . 1 Launcher 1 | . 1 . . . Special Weapon 1 | . . . . 1 Impact Weapon . | . . . . . Slashing Weapon . | . . . . . Piercing Weapon . | . . . . . Special Melee Weapon . | . . . . . Unidentified Prototypes . | . . . . . Parts Lost 5 | . . . . 5 Power . | . . . . . Propulsion . | . . . . . Utility 2 | . . . . 2 Weapon 3 | . . . . 3 Highest Loss Streak 3 | . . . . 3 To Critical Strikes . | . . . . . Average Backups 7 | 3 4 8 9 9 Power . | . 1 1 1 1 Propulsion 1 | 1 2 2 2 2 Utility 1 | . . 1 2 2 Weapon 2 | . 1 3 4 3 Tool/Special . | . . . . . Unused Backups 6 | . . . . 6 Power 1 | . . . . 1 Propulsion . | . . . . . Utility 2 | . . . . 2 Weapon 2 | . . . . 2 Tool/Special 1 | . . . . 1 Average Slot Usage (%) 98 | . 94 100 100 94 Engine 14 | . 14 14 14 14 Leg 3 | . 28 3 . . Wheel 24 | . . 24 28 28 Storage 14 | . 14 14 14 14 Protection 13 | . 8 14 14 11 Energy Gun 12 | . 14 14 14 3 Ballistic Cannon 1 | . . . . 9 Launcher 13 | . 9 14 14 13 Peak Build Rating 14 | 6 7 7 8 14 Average Rating 7 | 5 6 6 7 11 On Entrance 5 | . 6 7 7 8 Avg Prop Armor Cover (%) 30 | 30 . . . . Naked Turns . | . . . . . Heaviest Build 30 | 13 18 23 23 30 Greatest Support 26 | 20 20 26 26 26 Greatest Overweight (x) 1 | . . 1 . 1 Average Overweight (x) . | . . . . . Largest Inventory Capacity 10 | 8 8 10 10 10 Average Capacity 9 | 7 8 9 10 10 Most Carried 10 | 4 6 9 10 10 Average Carried 7 | 3 4 8 9 9 Final Capacity 10 | 8 8 10 10 10 Final Carried 10 | 4 6 9 10 9 Class Distribution -------------------- 100% | Mutant Dominant Class ---------------- Mutant | -10/Materials Mutant | -10/Mines Mutant | -10/Exiles Mutant | -9/Mines Resources | -11 -10 -10 -10 -9 ----------- Run | Yrd Mat Min Exi Min Matter Collected 400 | 227 . 133 . 40 Remotely . | . . . . . Salvage Created 52 | . . 52 . . Parts 1 | . . 1 . . Haulers Intercepted . | . . . . . Recyclers Shooed . | . . . . . Parts Field Recycled . | . . . . . Retrieved Matter . | . . . . . Parts Self-Destructed . | . . . . . Prevented . | . . . . . Parts Restored . | . . . . . Kills | -11 -10 -10 -10 -9 ------- Run | Yrd Mat Min Exi Min Combat Hostiles Destroyed 3 | . . 2 . 1 AOE 3 | . . 2 . 1 Classes Destroyed 2 | . . 1 . 1 Grunt 2 | . . 2 . . Demolisher 1 | . . . . 1 Best Kill Streak 2 | . . 2 . 1 Combat Bots Only 2 | . . 2 . 1 Max Kills in Single Turn 2 | . . 2 . 1 Gunslinging . | . . . . . Exploded 2 | . . 2 . 1 Melee . | . . . . . Uniques/NPCs Destroyed . | . . . . . Combat | -11 -10 -10 -10 -9 -------- Run | Yrd Mat Min Exi Min Hostile Shots Fired 8 | . . 4 . 4 Missed 1 | . . 1 . . Hits 7 | . . 3 . 4 Projectile 7 | . . 3 . 4 AOE 6 | . . . . 6 Damage Taken 548 | . . 45 . 503 Core 81 | . . 16 . 65 Absorbed by Shields . | . . . . . Core Remaining (%) 100 | 100 . . . . Volleys Fired 8 | . . 3 . 5 Largest 2 | . . 2 . 1 Hottest 100 | . . 70 . 100 Shots Fired 9 | . . 4 . 5 Gun 3 | . . 1 . 2 Cannon . | . . . . . Launcher 5 | . . 3 . 2 Special 1 | . . . . 1 Kinetic . | . . . . . Thermal 1 | . . . . 1 Explosive 5 | . . 3 . 2 Electromagnetic 3 | . . 1 . 2 Robot Hit Streak 3 | . . 1 . 3 Robot Miss Streak 1 | . . 1 . 1 Penetration Max . | . . . . . Secondary Targets . | . . . . . Shots Hit Robots 5 | . . 2 . 3 Core Hits 6 | . . 4 . 2 Critical Kills . | . . . . . Critical Parts Destroyed . | . . . . . Critical Strikes . | . . . . . Melee Attacks . | . . . . . Impact . | . . . . . Slashing . | . . . . . Piercing . | . . . . . Sneak Attacks . | . . . . . Combat Hostiles . | . . . . . Follow-up Attacks . | . . . . . Damage Inflicted 197 | . . 154 . 43 Guns 20 | . . . . 20 Cannons . | . . . . . Explosions 173 | . . 154 . 19 Melee . | . . . . . Ramming 4 | . . . . 4 Kinetic . | . . . . . Thermal . | . . . . . Explosive 173 | . . 154 . 19 Electromagnetic 20 | . . . . 20 Impact . | . . . . . Slashing . | . . . . . Piercing . | . . . . . Highest Corruption 7 | . . . . 7 Average Corruption 7 | . . . . 7 Corruption Purged . | . . . . . Corruption Blocked . | . . . . . Effects 1 | . . . . 1 Message Errors 1 | . . . . 1 Overload Shots . | . . . . . Overflow Damage . | . . . . . Projectiles . | . . . . . Explosions . | . . . . . Melee . | . . . . . Knockbacks . | . . . . . Impact . | . . . . . Kinetic . | . . . . . Secondary . | . . . . . Self-Inflicted Damage 3 | . . . . 3 Shots 1 | . . . . 1 Rammed 1 | . . . . 1 Targets Rammed 1 | . . . . 1 Kicked . | . . . . . Crushed . | . . . . . Highest Temperature 33 | . . 33 . 28 Average Temperature 15 | . . 21 . 12 Received Heat Transfer 24 | . . 24 . . Siege Activations . | . . . . . Martial Activations . | . . . . . Shielding Activations . | . . . . . Robots Disrupted . | . . . . . Combat Hostiles . | . . . . . Robots Corrupted . | . . . . . Combat Hostiles . | . . . . . Parts Fried . | . . . . . Impact Corruptions . | . . . . . Robots Melted . | . . . . . Combat Hostiles . | . . . . . Parts Melted . | . . . . . Heat Transferred . | . . . . . Parts Sabotaged . | . . . . . Parts Stolen . | . . . . . Parts Stripped . | . . . . . Power Chain Reactions . | . . . . . Alert | -11 -10 -10 -10 -9 ------- Run | Yrd Mat Min Exi Min Maximum Alert Level . | . . . . . Low Security (%) 100 | 100 100 100 . 100 Level 1 . | . . . . . Level 2 . | . . . . . Level 3 . | . . . . . Level 4 . | . . . . . Level 5 . | . . . . . High Security . | . . . . . Max Security . | . . . . . Peak Influence 68 | . . 68 . 35 Initial . | . . . . . Average 5 | . . 17 . 5 Influence Increases 143 | . . 78 . 65 Destroy 0b10 Robot/C 60 | . . 40 . 20 Destroy Leader 10 | . . 10 . . Destroy Structure 28 | . . 28 . . Lose Combat Pursuer 45 | . . . . 45 Influence Decreases 138 | . . 60 18 60 Entered New Map 18 | . . . 18 . Time Decay 90 | . . 60 . 30 Lost Part 30 | . . . . 30 Squads Dispatched 1 | . 1 . . . Investigation . | . . . . . Extermination . | . . . . . Reinforcement 1 | . 1 . . . Assault . | . . . . . Garrison . | . . . . . Intercept . | . . . . . Searches Triggered . | . . . . . Construction Impeded . | . . . . . Haulers Reinforced . | . . . . . Active Scanning Responses . | . . . . . Cargo Convoy Interrupts . | . . . . . Stealth | -11 -10 -10 -10 -9 --------- Run | Yrd Mat Min Exi Min Distress Signals . | . . . . . Communications Jammed . | . . . . . Distress Signals . | . . . . . Times Spotted 9 | . 1 2 . 6 Peak Tracking Total 3 | . 1 2 . 3 Tactical Retreats 1 | . . . . 1 Traps | -11 -10 -10 -10 -9 ------- Run | Yrd Mat Min Exi Min Traps Triggered . | . . . . . Indirectly . | . . . . . Trap Hack Attempts . | . . . . . Triggered . | . . . . . Disarmed . | . . . . . Reprogrammed . | . . . . . Reused . | . . . . . Traps Extracted . | . . . . . Installed . | . . . . . Triggered . | . . . . . Machines | -11 -10 -10 -10 -9 ---------- Run | Yrd Mat Min Exi Min Machines Disabled . | . . . . . Max in Single Turn . | . . . . . Machines Repaired . | . . . . . Machines Dismantled . | . . . . . Machines Sabotaged . | . . . . . Overloaded Fab Kills . | . . . . . Hacking | -11 -10 -10 -10 -9 --------- Run | Yrd Mat Min Exi Min Machines Accessed 6 | . 1 . 5 . Terminals 1 | . 1 . . . Fabricators . | . . . . . Repair Stations . | . . . . . Recycling Units . | . . . . . Scanalyzers . | . . . . . Garrison Access . | . . . . . Total Hacks 51 | . 1 . 50 . Successful 51 | . 1 . 50 . Failed . | . . . . . Catastrophic . | . . . . . Database Lockouts . | . . . . . Manual 4 | . 1 . 3 . Terminals 1 | . 1 . . . Fabricators . | . . . . . Repair Stations . | . . . . . Recycling Units . | . . . . . Scanalyzers . | . . . . . Garrison Access . | . . . . . Terminal Hacks 51 | . 1 . 50 . Record 50 | . 1 . 49 . Proto ID Catalog 1 | . . . 1 . Fabricator Hacks . | . . . . . Repair Station Hacks . | . . . . . Recycling Unit Hacks . | . . . . . Scanalyzer . | . . . . . Garrison Access Hacks . | . . . . . Unauthorized Hacks . | . . . . . Terminals . | . . . . . Fabricators . | . . . . . Repair Stations . | . . . . . Recycling Units . | . . . . . Scanalyzers . | . . . . . Garrison Access . | . . . . . Data Cores Recovered . | . . . . . Used . | . . . . . Hacking Detections 1 | . 1 . . . Full Trace Events . | . . . . . Feedback Events . | . . . . . Feedback Blocked . | . . . . . Robot Schematics Acquired . | . . . . . Robots Built . | . . . . . Authchips . | . . . . . Time . | . . . . . Total Robot Build Rating . | . . . . . Part Schematics Acquired . | . . . . . Parts Built . | . . . . . Authchips . | . . . . . Time . | . . . . . Total Part Build Rating . | . . . . . Part Studies Acquired . | . . . . . Parts Repaired . | . . . . . Time . | . . . . . Parts Recycled . | . . . . . Recycled Matter . | . . . . . Retrieved Matter . | . . . . . Retrieved Components . | . . . . . Parts Scanalyzed . | . . . . . Part Schematics Acquired . | . . . . . Parts Damaged . | . . . . . Bothacking | -11 -10 -10 -10 -9 ------------ Run | Yrd Mat Min Exi Min Used RIF Installer . | . . . . . Robots Hacked . | . . . . . Non-combat . | . . . . . Combat . | . . . . . Robot Hacks Applied . | . . . . . Relay Couplers Released . | . . . . . Fabnet Peak Effective % . | . . . . . Robots Rewired . | . . . . . Allies Hacked . | . . . . . Hacks Repelled . | . . . . . Allies | -11 -10 -10 -10 -9 -------- Run | Yrd Mat Min Exi Min Total Allies . | . . . . . Largest Group . | . . . . . Highest-Rated Group . | . . . . . Highest-Rated Ally . | . . . . . Total Orders . | . . . . . Ally Attacks . | . . . . . Total Damage . | . . . . . Kills . | . . . . . Allies Corrupted . | . . . . . Allies Melted . | . . . . . Intel | -11 -10 -10 -10 -9 ------- Run | Yrd Mat Min Exi Min Active Infowar (turns) . | . . . . . Robot Analysis Total . | . . . . . Derelict Logs Recovered 3 | . . 2 . 1 Drone Launches . | . . . . . Drone Recoveries . | . . . . . Exploration | -11 -10 -10 -10 -9 ------------- Run | Yrd Mat Min Exi Min Turns Passed 1495 | 377 120 242 598 158 Spaces Moved 1194 | 73 97 242 660 122 Core 12 | 12 . . . . Treads . | . . . . . Legs 164 | 61 97 6 . . Wheels 1018 | . . 236 660 122 Hover . | . . . . . Flight . | . . . . . Fastest Speed 50 | 50 120 90 90 90 Average Speed 94 | 108 120 91 90 100 Slowest Speed 190 | 120 120 190 90 105 Overloaded Moves . | . . . . . Propulsion Burnouts . | . . . . . Robots Hopped . | . . . . . Potential Cave-ins 12 | . . . . 12 Cave-ins Triggered 1 | . . . . 1 Exploration Rate (%) 44 | 9 26 72 93 21 Regions Visited 4 Branch Regions 3 Pre-discovered Areas 3 | . . 2 1 . Known Exits Taken . | . . . . . Unknown Exits Taken 4 | 1 1 1 1 . Scrap Searched 4 | . . 3 . 1 Spaces Dug 1 | . . . . 1 Terrain Destroyed 41 | . . 28 . 13 Melee . | . . . . . Projectile 1 | . . . . 1 AOE 40 | . . 28 . 12 Terrain Rammed . | . . . . . Walls Destroyed . | . . . . . Machines Disabled . | . . . . . Actions | -11 -10 -10 -10 -9 --------- Run | Yrd Mat Min Exi Min Total 1542 | 368 100 261 663 150 Wait 310 | 286 . 4 3 17 Move 1189 | 72 96 241 659 121 Hop . | . . . . . Pick Up 9 | 4 1 3 1 . Fast Attach 11 | 6 2 1 . 2 Attach 5 | . . 4 . 1 Detach 6 | . 1 4 . 1 Swap . | . . . . . Drop 2 | . . 1 . 1 Fire 8 | . . 3 . 5 Melee . | . . . . . Ram 1 | . . . . 1 Kick . | . . . . . Crush . | . . . . . Escape Stasis 1 | . . . . 1 Rewire . | . . . . . Trap . | . . . . . Miscellaneous . | . . . . . Route ------- -11/Scrapyard -10/Materials -10/Mines (discovered 3 exits: *Mat / *Exi / [*Sub]) -10/Exiles (discovered 2 exits: [*Min x2]) -9/Mines (discovered 1 exit: [*Mat]) History --------- Turn | Location | Event 5 | -11/Scrapyard | Discovered new exit (range 16) 378 | -11/Scrapyard | Entered Materials 379 | -10/Materials | Build established: Mutant 480 | -10/Materials | Discovered new exit (range 13) 498 | -10/Materials | Entered Mines 537 | -10/Mines | Discovered new exit (range 3) 688 | -10/Mines | Identified exit to Materials 710 | -10/Mines | Learned location of Storage (-8) 735 | -10/Mines | Deemed a non-threat by the Exiles lab entrance 735 | -10/Mines | Discovered new exit (range 5) 740 | -10/Mines | Entered Exiles 754 | -10/Exiles | Discovered new exit (range 15) 777 | -10/Exiles | Met 8R-AWN 794 | -10/Exiles | Met EX-HEX 839 | -10/Exiles | Met EX-BIN 859 | -10/Exiles | Aligned with FarCom system 860 | -10/Exiles | Given EX-Vault access code 916 | -10/Exiles | Met EX-DEC 972 | -10/Exiles | Opened EX-Vault 984 | -10/Exiles | Found Skeleton Box 1003 | -10/Exiles | Warned to stay clear of 0b10 Research branches 1042 | -10/Exiles | Learned location of Zion (-7) 1086 | -10/Exiles | Discovered new exit (range 10) 1167 | -10/Exiles | Visited The Gauntlet 1338 | -10/Exiles | Left Exiles lab with Skeleton Box 1338 | -10/Exiles | Entered Mines 1350 | -9/Mines | Assembled infested the area 1355 | -9/Mines | Assisted by a Guerilla fighting off Assembled 1364 | -9/Mines | Discovered new exit (range 12) 1487 | -9/Mines | Crushed by falling debris 1496 | -9/Mines | Self-destructed Last Messages --------------- 01445_ MD-CZW(g) slips into the shadows. 01448_ K-01 Serf cleans the Plasma Injector. 01455_ Slammed into K-01 Serf. 01455_ Destabilizing: System interference. 01455_ Bore Cannon temporarily disabled. [Achievement: For Emergencies Only] 01469_ U-05 Engineer lays Concrete. 01470_ U-05 Engineer builds a Wall. 01473_ The unstable cave ceiling collapses. 01481_ Dropped Sml. Laser. 01486_ K-01 Serf collects debris. 01487_ The unstable cave ceiling collapses. 01487_ Crushed by falling debris. 01487_ Grenade Launcher destroyed. 01487_ System corrupted by crushing effect (+3). 01487_ Mining Laser destroyed. 01487_ System corrupted by crushing effect (+3). 01487_ Imp. Light Armor Plating destroyed. 01487_ System corrupted by crushing effect (+1). 01490_ IK,Q6 S0